fUSD/lending_fUSD_20250106
["ID","MTS","AMOUNT","RATE_DAILY","PERIOD"]
[347820426,1736131836604,-504.12428845,0.00011697,2]
[347820427,1736131836613,-500.0,0.00011697,2]
[347820428,1736131836623,-500.0,0.00011697,2]
[347820429,1736131836632,-642.09,0.00011697,2]
[347820430,1736131836642,-500.0,0.00011697,2]
[347820431,1736131836651,-505.81050947,0.00011697,2]
[347820432,1736131836661,-500.0,0.00011697,2]
[347820433,1736131836670,-500.0,0.00011697,2]
[347820434,1736131836679,-500.0,0.00011697,2]
[347820435,1736131836688,-2170.99,0.00011697,2]
[347820436,1736131836697,-500.0,0.00011697,2]
[347820437,1736131836706,-500.0,0.00011697,2]
[347820438,1736131836715,-500.0,0.00011697,2]
[347820439,1736131836724,-525.28791301,0.00011697,2]
[347820440,1736131836733,-699.0,0.00011698,2]
[347820441,1736131836742,-699.0,0.00011698,2]
[347820442,1736131836751,-699.0,0.00011698,2]
[347820443,1736131836760,-699.0,0.00011698,2]
[347820444,1736131836769,-699.0,0.00011698,2]
[347820445,1736131836778,-699.0,0.00011698,2]
[347820446,1736131836787,-699.0,0.00011698,2]
[347820447,1736131836796,-699.0,0.00011698,2]
[347820448,1736131836806,-699.0,0.00011698,2]
[347820449,1736131836815,-699.0,0.00011698,2]
[347820450,1736131836823,-699.0,0.00011698,2]
[347820451,1736131836832,-699.0,0.00011698,2]
[347820452,1736131836841,-699.0,0.00011698,2]
[347820453,1736131836850,-699.0,0.00011698,2]
[347820454,1736131836859,-191.58827857,0.00011698,2]
[347820455,1736131836869,-5000.0,0.00011698,2]
[347820456,1736131836878,-197.62398135,0.00011699,2]
[347820457,1736131836887,-528.755157,0.00011699,2]
[347820458,1736131836896,-3415.34055666,0.00011699,2]
[347820459,1736131836905,-209.54743414,0.00011699,2]
[347820460,1736131836914,-8703.82593679,0.000117,2]
[347820461,1736131836923,-500.0,0.00011704,2]
[347820462,1736131836934,-2000.0,0.00011704,2]
[347820463,1736131836943,-500.0,0.00011704,2]
[347820464,1736131836952,-8703.82593673,0.00011722,2]
[347820465,1736131836961,-8703.82593673,0.00011744,2]
[347820466,1736131836970,-1655.0,0.00011747,8]
[347820467,1736131836978,-197.62398133,0.0001175,2]
[347820468,1736131836985,-8703.82593673,0.00011767,2]
[347820469,1736131836992,-8703.82593673,0.00011789,2]
[347820470,1736131837000,-16929.6806837,0.00011792,2]
[347820471,1736131837006,-269.6907083,0.00011792,2]
[347820472,1736131837015,-2706.0342963,0.00011792,2]
[347820473,1736131837023,-541.2068593,0.00011792,2]
[347820474,1736131837032,-1496.05,0.00011798,2]
[347820475,1736131837042,-3000.0,0.00011798,2]
[347820476,1736131837051,-500.0,0.00011798,2]
[347820477,1736131837060,-379.21,0.00011798,2]
[347820478,1736131837069,-1610.21,0.00011798,2]
[347820479,1736131837079,-759.82,0.00011798,2]
[347820480,1736131837088,-2779.27,0.00011798,2]
[347820481,1736131837097,-2488.79,0.00011798,2]
[347820482,1736131837107,-1834.55,0.00011798,2]
[347820483,1736131837116,-500.0,0.00011798,2]
[347820484,1736131837126,-934.33,0.00011798,2]
[347820485,1736131837135,-393405.6328221,0.00011799,2]
[347820486,1736131837180,-4075.65080383,0.00011799,2]
[347820487,1736131837191,-692619.92131552,0.00011799,2]
[347820488,1736131837201,-50718.44230412,0.00011799,2]
[347820489,1736131837212,-362663.54748129,0.00011799,2]
[347820490,1736131837224,-773.83676388,0.00011799,2]
[347820491,1736131837257,-24207.13858658,0.00011799,2]
[347820492,1736131837268,-633.91785618,0.00011799,2]
[347820493,1736131837280,-1238.04,0.00011799,2]
[347820494,1736131837291,-993670.84000829,0.00011799,2]
[347820495,1736131837301,-489.79570988,0.00011799,2]
[347820496,1736131837312,-388.59141856,0.00011799,2]
[347820499,1736131838277,-319.58626948,0.00010137,2]
[347820500,1736131838289,-473.23373052,0.00010137,2]
[347820501,1736131838298,-500.0,0.00011697,2]
[347820502,1736131838307,-500.0,0.00011697,2]
[347820503,1736131838316,-518.17151366,0.00011697,2]
[347820504,1736131838326,-500.0,0.00011697,2]
[347820505,1736131838335,-500.0,0.00011697,2]
[347820506,1736131838344,-500.0,0.00011697,2]
[347820507,1736131838355,-500.0,0.00011697,2]
[347820508,1736131838365,-500.0,0.00011697,2]
[347820509,1736131838374,-970.84321229,0.00011799,2]
[347820510,1736131838385,-8940.77294004,0.00011799,2]
[347820511,1736131838399,-2895.42788783,0.00011799,2]
[347820512,1736131838410,-1262.42531944,0.00011799,2]
[347820513,1736131838431,-239484.36385842,0.00011799,2]
[347820514,1736131838442,-7481.0,0.00011799,2]
[347820515,1736131838452,-48070.63924552,0.00011799,2]
[347820516,1736131838464,-29671.50000002,0.00011799,2]
[347820517,1736131838475,-708725.76683974,0.00011799,2]
[347820518,1736131838485,-387.38681866,0.00011799,2]
[347820519,1736131838506,-5110.70886892,0.00011799,2]
[347820520,1736131838516,-2011.22846581,0.00011799,2]
[347820522,1736131840279,-500.0,0.00011695,2]
[347820523,1736131840288,-777.905,0.00011799,2]
[347820524,1736131840585,-288.0632974,0.00011697,2]
[347820525,1736131840632,-558.26356967,0.00011697,2]
[347820543,1736131843234,-515.27388774,0.00011695,2]
[347820544,1736131843244,-477.51509119,0.00011695,2]
[347820562,1736131846312,-1842.65,0.00011597,2]
[347820563,1736131846323,-1907.18675999,0.00011597,2]
[347820564,1736131846334,-289.80866117,0.00011597,2]
[347820565,1736131846345,-960.35457884,0.00011597,2]
[347820566,1736131846354,-22.48490881,0.00011695,2]
[347820567,1736131846363,-511.59051606,0.00011695,2]
[347820568,1736131846372,-636.49313293,0.00011697,2]
[347820569,1736131846381,-500.0,0.00011697,2]
[347820570,1736131846390,-191.62,0.00011697,2]
[347820571,1736131846399,-1758.11,0.00011798,2]
[347820572,1736131846409,-17149.58376342,0.00011799,2]
[347820573,1736131846420,-99370.56610555,0.00011799,2]
[347820574,1736131846485,-251.10073731,0.00011799,2]
[347820575,1736131846495,-432.00902886,0.00011799,2]
[347820576,1736131846506,-432.86,0.00011799,2]
[347820901,1736131869949,1646.30440372,0.00012121,24]
[347820903,1736132211586,417.56,0.00012121,24]
[347820910,1736132804466,638.4,0.0002,120]
[347820939,1736133032478,-460.1,8.766e-05,2]
[347820941,1736133032488,-514.94619083,9.072e-05,2]
[347820943,1736133032497,-160.67,0.00010137,2]
[347820944,1736133032506,-250.0,0.00010485,2]
[347820946,1736133032515,-214.40607705,0.00010509,2]
[347820947,1736133032668,-239.99392295,0.00010509,2]
[347820948,1736133032678,-200.6927106,0.00010544,2]
[347820949,1736133032687,-197.89,0.00010644,2]
[347820950,1736133032696,-321.25839397,0.00010727,2]
[347820951,1736133032708,-1176.14160603,0.00010727,2]
[347820952,1736133032717,-1000.0,0.00010763,2]
[347820953,1736133032727,-395.24,0.00010912,2]
[347820954,1736133032737,-150.0,0.00010959,2]
[347820955,1736133032746,-400.0,0.00010986,2]
[347820956,1736133032755,-460.1,0.0001103,2]
[347820957,1736133032764,-200.69271058,0.0001107,2]
[347820958,1736133032773,-381.644,0.0001121,2]
[347820959,1736133032782,-1490.62,0.00011222,2]
[347820960,1736133032791,-300.0,0.00011263,2]
[347820961,1736133032800,-500.0,0.00011264,2]
[347820962,1736133032809,-503.81128818,0.00011264,2]
[347820963,1736133032818,-1519.31,0.00011343,2]
[347820964,1736133032827,-300.57,0.00011479,2]
[347820965,1736133032836,-1517.45,0.0001153,2]
[347820966,1736133032845,-322.4316773,0.00011563,2]
[347820967,1736133032854,-200.69271058,0.00011595,2]
[347820968,1736133032864,-2500.0,0.00011595,2]
[347820969,1736133032873,-698.7132,0.00011597,2]
[347820970,1736133032882,-3000.0,0.0001168,2]
[347820971,1736133032891,-150.0,0.0001168,2]
[347820972,1736133032901,-500.0,0.00011695,2]
[347820973,1736133032910,-500.0,0.00011695,2]
[347820974,1736133032919,-500.0,0.00011695,2]
[347820975,1736133032929,-500.0,0.00011695,2]
[347820976,1736133032938,-500.0,0.00011695,2]
[347820977,1736133032947,-500.0,0.00011695,2]
[347820978,1736133032955,-500.0,0.00011695,2]
[347820979,1736133032965,-500.0,0.00011695,2]
[347820980,1736133032974,-500.0,0.00011695,2]
[347820981,1736133032983,-447.99935943,0.00011695,2]
[347820982,1736133032992,-500.0,0.00011695,2]
[347820983,1736133033001,-500.0,0.00011695,2]
[347820984,1736133033011,-500.0,0.00011695,2]
[347820985,1736133033020,-500.0,0.00011695,2]
[347820986,1736133033030,-500.0,0.00011695,2]
[347820987,1736133033039,-500.0,0.00011695,2]
[347820988,1736133033049,-500.0,0.00011695,2]
[347820989,1736133033059,-500.0,0.00011695,2]
[347820990,1736133033069,-500.0,0.00011695,2]
[347820991,1736133033078,-500.0,0.00011695,2]
[347820992,1736133033088,-500.0,0.00011695,2]
[347820993,1736133033097,-500.0,0.00011695,2]
[347820994,1736133033106,-500.0,0.00011695,2]
[347820995,1736133033116,-500.0,0.00011695,2]
[347820996,1736133033125,-500.0,0.00011695,2]
[347820997,1736133033135,-500.0,0.00011695,2]
[347820998,1736133033144,-500.0,0.00011695,2]
[347820999,1736133033153,-500.0,0.00011695,2]
[347821000,1736133033163,-500.0,0.00011695,2]
[347821001,1736133033173,-500.0,0.00011695,2]
[347821002,1736133033182,-500.0,0.00011695,2]
[347821003,1736133033191,-547.1,0.00011695,2]
[347821004,1736133033200,-500.0,0.00011695,2]
[347821005,1736133033210,-505.9,0.00011695,2]
[347821006,1736133033219,-500.0,0.00011695,2]
[347821007,1736133033228,-500.0,0.00011695,2]
[347821008,1736133033238,-500.0,0.00011695,2]
[347821009,1736133033247,-500.0,0.00011695,2]
[347821010,1736133033257,-500.0,0.00011695,2]
[347821011,1736133033266,-500.0,0.00011695,2]
[347821012,1736133033275,-570.74,0.00011695,2]
[347821013,1736133033284,-500.0,0.00011695,2]
[347821014,1736133033297,-500.0,0.00011695,2]
[347821015,1736133033307,-500.0,0.00011695,2]
[347821016,1736133033316,-508.33041312,0.00011695,2]
[347821017,1736133033325,-895.4,0.00011695,2]
[347821018,1736133033335,-1684.86,0.00011695,2]
[347821019,1736133033345,-500.0,0.00011695,2]
[347821020,1736133033354,-521.89,0.00011695,2]
[347821021,1736133033364,-1497.59,0.00011695,2]
[347821022,1736133033374,-500.0,0.00011695,2]
[347821023,1736133033384,-500.0,0.00011695,2]
[347821024,1736133033393,-603.21,0.00011695,2]
[347821025,1736133033403,-1993.84,0.00011697,2]
[347821026,1736133033413,-500.0,0.00011697,2]
[347821027,1736133033422,-500.0,0.00011697,2]
[347821028,1736133033432,-607.61,0.00011697,2]
[347821029,1736133033441,-500.0,0.00011697,2]
[347821030,1736133033450,-500.0,0.00011697,2]
[347821031,1736133033460,-500.0,0.00011697,2]
[347821032,1736133033470,-500.0,0.00011697,2]
[347821033,1736133033480,-818.65,0.00011697,2]
[347821034,1736133033489,-626.26,0.00011697,2]
[347821035,1736133033498,-2055.38,0.00011697,2]
[347821036,1736133033508,-708.77,0.00011697,2]
[347821037,1736133033518,-1075.62,0.00011697,2]
[347821038,1736133033528,-616.66,0.00011697,2]
[347821039,1736133033537,-500.0,0.00011697,2]
[347821040,1736133033548,-500.0,0.00011697,2]
[347821041,1736133033558,-500.0,0.00011697,2]
[347821042,1736133033567,-1381.64,0.00011697,2]
[347821043,1736133033576,-948.35,0.00011697,2]
[347821044,1736133033586,-500.0,0.00011697,2]
[347821045,1736133033595,-500.0,0.00011697,2]
[347821046,1736133033604,-2500.0,0.000117,2]
[347821047,1736133033614,-197.62398133,0.000117,2]
[347821048,1736133033623,-2500.0,0.000117,2]
[347821049,1736133033633,-2000.0,0.00011705,2]
[347821050,1736133033643,-500.0,0.00011773,2]
[347821051,1736133033654,-500.0,0.00011798,2]
[347821052,1736133033663,-582.07,0.00011798,2]
[347821053,1736133033673,-500.0,0.00011798,2]
[347821054,1736133033682,-1354.51,0.00011798,2]
[347821055,1736133033691,-500.0,0.00011798,2]
[347821056,1736133033701,-3418.7,0.00011798,2]
[347821057,1736133033710,-500.0,0.00011798,2]
[347821058,1736133033719,-500.0,0.00011798,2]
[347821059,1736133033729,-1515.92,0.00011799,2]
[347821060,1736133033742,-1363.57038164,0.00011799,3]
[347821061,1736133033754,-1245.72055079,0.00011799,3]
[347821062,1736133033766,-1000.0,0.00011799,2]
[347821063,1736133033778,-500.0,0.00011799,2]
[347821064,1736133033788,-442.53405876,0.00011799,2]
[347821065,1736133033798,-1498.60171808,0.00011799,3]
[347821066,1736133033810,-500.0,0.00011799,2]
[347821067,1736133033821,-298.29514584,0.00011799,2]
[347821068,1736133033833,-320.996097,0.00011799,2]
[347821069,1736133033844,-500.0,0.00011799,2]
[347821070,1736133033855,-500.0,0.00011799,2]
[347821071,1736133033867,-500.0,0.00011799,2]
[347821072,1736133033878,-500.0,0.00011799,2]
[347821073,1736133033890,-512.9140029,0.00011799,2]
[347821074,1736133033901,-357.645701,0.00011799,2]
[347821075,1736133033914,-500.0,0.00011799,2]
[347821076,1736133033925,-573.21498691,0.00011799,2]
[347821077,1736133033936,-500.0,0.00011799,2]
[347821078,1736133033947,-500.0,0.00011799,2]
[347821079,1736133033958,-522.70249193,0.00011799,2]
[347821080,1736133033968,-239.20525375,0.00011799,2]
[347821081,1736133033978,-500.0,0.00011799,2]
[347821082,1736133033988,-511.80924808,0.00011799,2]
[347821083,1736133034000,-513.24759878,0.00011799,2]
[347821084,1736133034011,-510.23535391,0.00011799,2]
[347821085,1736133034022,-509.69696785,0.00011799,2]
[347821086,1736133034034,-210.61268567,0.00011799,2]
[347821087,1736133034046,-500.0,0.00011799,2]
[347821088,1736133034057,-514.87801566,0.00011799,2]
[347821089,1736133034069,-514.59441507,0.00011799,2]
[347821090,1736133034081,-500.0,0.00011799,2]
[347821091,1736133034093,-509.89557951,0.00011799,2]
[347821092,1736133034104,-500.0,0.00011799,2]
[347821093,1736133034116,-500.0,0.00011799,2]
[347821094,1736133034128,-616.25101856,0.00011799,2]
[347821095,1736133034139,-500.0,0.00011799,2]
[347821096,1736133034151,-500.0,0.00011799,2]
[347821097,1736133034162,-500.0,0.00011799,2]
[347821098,1736133034176,-500.0,0.00011799,2]
[347821099,1736133034188,-500.0,0.00011799,2]
[347821100,1736133034200,-506.35816096,0.00011799,2]
[347821101,1736133034211,-500.0,0.00011799,2]
[347821102,1736133034223,-312.90405131,0.00011799,2]
[347821103,1736133034234,-533.78613832,0.00011799,2]
[347821104,1736133034246,-500.0,0.00011799,2]
[347821105,1736133034258,-500.0,0.00011799,2]
[347821106,1736133034269,-500.0,0.00011799,2]
[347821107,1736133034282,-500.0,0.00011799,2]
[347821108,1736133034296,-511.60737244,0.00011799,2]
[347821109,1736133034308,-500.0,0.00011799,2]
[347821110,1736133034321,-500.0,0.00011799,2]
[347821111,1736133034335,-452.08553465,0.00011799,2]
[347821112,1736133034346,-500.0,0.00011799,2]
[347821113,1736133034357,-500.0,0.00011799,2]
[347821114,1736133034370,-500.0,0.00011799,2]
[347821115,1736133034381,-500.0,0.00011799,2]
[347821116,1736133034392,-500.0,0.00011799,2]
[347821117,1736133034403,-500.0,0.00011799,2]
[347821118,1736133034414,-500.0,0.00011799,2]
[347821119,1736133034425,-620.14,0.00011799,2]
[347821120,1736133034435,-500.0,0.00011799,2]
[347821121,1736133034446,-516.01637498,0.00011799,2]
[347821122,1736133034460,-516.32117169,0.00011799,2]
[347821123,1736133034472,-500.0,0.00011799,2]
[347821124,1736133034483,-500.0,0.00011799,2]
[347821125,1736133034493,-506.43313497,0.00011799,2]
[347821126,1736133034504,-510.91310444,0.00011799,2]
[347821127,1736133034514,-500.0,0.00011799,2]
[347821128,1736133034524,-520.94514455,0.00011799,2]
[347821129,1736133034534,-500.0,0.00011799,2]
[347821130,1736133034545,-500.0,0.00011799,2]
[347821131,1736133034556,-500.0,0.00011799,2]
[347821132,1736133034567,-508.00025721,0.00011799,2]
[347821133,1736133034577,-514.1362734,0.00011799,2]
[347821134,1736133034588,-511.52086371,0.00011799,2]
[347821135,1736133034599,-508.20575819,0.00011799,2]
[347821136,1736133034609,-377.39580332,0.00011799,2]
[347821137,1736133034619,-355.61864336,0.00011799,2]
[347821138,1736133034629,-500.0,0.00011799,2]
[347821139,1736133034640,-510.54719961,0.00011799,2]
[347821140,1736133034651,-1764.79,0.00011799,2]
[347821141,1736133034662,-500.0,0.00011799,2]
[347821142,1736133034672,-443.08740824,0.00011799,2]
[347821143,1736133034683,-514.02138288,0.00011799,2]
[347821144,1736133034694,-500.0,0.00011799,2]
[347821145,1736133034704,-515.21518448,0.00011799,2]
[347821146,1736133034715,-845.75,0.00011799,2]
[347821147,1736133034725,-500.0,0.00011799,2]
[347821148,1736133034735,-508.61458125,0.00011799,2]
[347821149,1736133034746,-511.48778126,0.00011799,2]
[347821150,1736133034758,-500.0,0.00011799,2]
[347821151,1736133034768,-201.12237948,0.00011799,2]
[347821152,1736133034778,-500.0,0.00011799,2]
[347821153,1736133034790,-500.0,0.00011799,2]
[347821154,1736133034801,-513.3906486,0.00011799,2]
[347821155,1736133034811,-339.82734362,0.00011799,2]
[347821156,1736133034821,-500.0,0.00011799,2]
[347821157,1736133034832,-500.0,0.00011799,2]
[347821158,1736133034842,-615.33,0.00011799,2]
[347821159,1736133034853,-362.00506371,0.00011799,2]
[347821160,1736133034864,-670.89,0.00011799,2]
[347821161,1736133034874,-500.0,0.00011799,2]
[347821162,1736133034885,-500.0,0.00011799,2]
[347821163,1736133034895,-500.0,0.00011799,2]
[347821164,1736133034908,-500.0,0.00011799,2]
[347821165,1736133034918,-500.0,0.00011799,2]
[347821166,1736133034931,-500.0,0.00011799,2]
[347821167,1736133034941,-312.51395233,0.00011799,2]
[347821168,1736133034951,-500.0,0.00011799,2]
[347821169,1736133034962,-1301.88,0.00011799,2]
[347821170,1736133034972,-1103.06,0.00011799,2]
[347821171,1736133034982,-500.0,0.00011799,2]
[347821172,1736133034992,-500.0,0.00011799,2]
[347821173,1736133035003,-500.0,0.00011799,2]
[347821174,1736133035014,-500.0,0.00011799,2]
[347821175,1736133035024,-500.0,0.00011799,2]
[347821176,1736133035034,-500.0,0.00011799,2]
[347821177,1736133035044,-592.41074988,0.00011799,2]
[347821178,1736133035054,-500.0,0.00011799,2]
[347821179,1736133035064,-511.2401985,0.00011799,2]
[347821180,1736133035075,-500.0,0.00011799,2]
[347821181,1736133035085,-526.90595639,0.00011799,2]
[347821182,1736133035095,-513.56589361,0.00011799,2]
[347821183,1736133035105,-500.0,0.00011799,2]
[347821184,1736133035115,-500.0,0.00011799,2]
[347821185,1736133035126,-508.20928554,0.00011799,2]
[347821186,1736133035136,-500.0,0.00011799,2]
[347821187,1736133035148,-573.8,0.00011799,2]
[347821188,1736133035158,-500.0,0.00011799,2]
[347821189,1736133035169,-500.0,0.00011799,2]
[347821190,1736133035179,-527.15070144,0.00011799,2]
[347821191,1736133035190,-500.0,0.00011799,2]
[347821192,1736133035200,-500.0,0.00011799,2]
[347821193,1736133035210,-500.0,0.00011799,2]
[347821194,1736133035220,-526.29042268,0.00011799,2]
[347821195,1736133035232,-508.65560716,0.00011799,2]
[347821196,1736133035242,-764.64,0.00011799,2]
[347821197,1736133035252,-506.92734699,0.00011799,2]
[347821198,1736133035263,-500.0,0.00011799,2]
[347821199,1736133035273,-1543.11,0.00011799,2]
[347821200,1736133035283,-500.0,0.00011799,2]
[347821201,1736133035295,-870.84,0.00011799,2]
[347821202,1736133035306,-509.42545106,0.00011799,2]
[347821203,1736133035316,-505.66436472,0.00011799,2]
[347821204,1736133035327,-517.85,0.00011799,2]
[347821205,1736133035339,-614.02928251,0.00011799,2]
[347821206,1736133035350,-504.35845348,0.00011799,2]
[347821207,1736133035360,-500.0,0.00011799,2]
[347821208,1736133035372,-510.53195563,0.00011799,2]
[347821209,1736133035382,-532.82,0.00011799,2]
[347821210,1736133035393,-500.0,0.00011799,2]
[347821211,1736133035405,-500.0,0.00011799,2]
[347821212,1736133035415,-810.68,0.00011799,2]
[347821213,1736133035425,-500.0,0.00011799,2]
[347821214,1736133035436,-500.0,0.00011799,2]
[347821215,1736133035447,-728.16,0.00011799,2]
[347821216,1736133035458,-508.43838309,0.00011799,2]
[347821217,1736133035468,-506.12836796,0.00011799,2]
[347821218,1736133035479,-500.0,0.00011799,2]
[347821219,1736133035489,-619.26473656,0.00011799,2]
[347821220,1736133035499,-500.0,0.00011799,2]
[347821221,1736133035510,-175.97796848,0.00011799,2]
[347821222,1736133035521,-484.54708418,0.00011799,2]
[347821223,1736133035532,-317.2688755,0.00011799,2]
[347821224,1736133035542,-500.0,0.00011799,2]
[347821225,1736133035553,-513.72818307,0.00011799,2]
[347821226,1736133035564,-506.20269691,0.00011799,2]
[347821227,1736133035575,-514.43118739,0.00011799,2]
[347821228,1736133035585,-500.0,0.00011799,2]
[347821229,1736133035596,-508.28323037,0.00011799,2]
[347821230,1736133035606,-509.77503998,0.00011799,2]
[347821231,1736133035617,-500.0,0.00011799,2]
[347821232,1736133035628,-500.0,0.00011799,2]
[347821233,1736133035638,-506.08151466,0.00011799,2]
[347821234,1736133035648,-508.56237966,0.00011799,2]
[347821235,1736133035659,-504.49684709,0.00011799,2]
[347821236,1736133035670,-500.0,0.00011799,2]
[347821237,1736133035681,-507.03566718,0.00011799,2]
[347821238,1736133035692,-500.0,0.00011799,2]
[347821239,1736133035702,-523.97263587,0.00011799,2]
[347821240,1736133035713,-500.0,0.00011799,2]
[347821241,1736133035723,-1622.13,0.00011799,2]
[347821242,1736133035734,-487.95052733,0.00011799,2]
[347821243,1736133035745,-2663.47,0.00011799,2]
[347821244,1736133035755,-505.05647796,0.00011799,2]
[347821245,1736133035766,-500.0,0.00011799,2]
[347821246,1736133035776,-508.8418463,0.00011799,2]
[347821247,1736133035787,-500.0,0.00011799,2]
[347821248,1736133035797,-558.66990965,0.00011799,2]
[347821249,1736133035807,-624.99,0.00011799,2]
[347821250,1736133035817,-500.0,0.00011799,2]
[347821251,1736133035828,-613.73,0.00011799,2]
[347821252,1736133035838,-166.64394035,0.00011799,2]
[347821253,1736133035848,-503.74050456,0.00011799,2]
[347821254,1736133035859,-503.71897851,0.00011799,2]
[347821255,1736133035869,-450.92128167,0.00011799,2]
[347821256,1736133035879,-500.0,0.00011799,2]
[347821257,1736133035889,-509.00609673,0.00011799,2]
[347821258,1736133035901,-518.12,0.00011799,2]
[347821259,1736133035911,-500.0,0.00011799,2]
[347821260,1736133035921,-500.0,0.00011799,2]
[347821261,1736133035931,-2215.29,0.00011799,2]
[347821262,1736133035941,-500.0,0.00011799,2]
[347821263,1736133035951,-635.23,0.00011799,2]
[347821264,1736133035961,-500.0,0.00011799,2]
[347821265,1736133035971,-2385.09,0.00011799,2]
[347821266,1736133035981,-500.0,0.00011799,2]
[347821267,1736133035991,-500.0,0.00011799,2]
[347821268,1736133036001,-500.0,0.00011799,2]
[347821269,1736133036011,-500.0,0.00011799,2]
[347821270,1736133036021,-500.0,0.00011799,2]
[347821271,1736133036031,-500.0,0.00011799,2]
[347821272,1736133036042,-891.0,0.000118,2]
[347821273,1736133036052,-4351.91296841,0.000118,2]
[347821274,1736133036062,-142624.28454317,0.000118,2]
[347821275,1736133036079,-825.04400671,0.000118,2]
[347821276,1736133036091,-1461.29771411,0.000118,2]
[347821277,1736133036103,-350.8690286,0.000118,2]
[347821278,1736133036115,-696.11325729,0.000118,2]
[347821279,1736133036147,-429.21021427,0.000118,2]
[347821280,1736133036161,-745.07568988,0.000118,2]
[347821283,1736133038265,-500.0,0.00011799,2]
[347821284,1736133038275,-7000.0,0.000118,2]
[347821285,1736133038673,-467.52,0.000118,2]
[347821286,1736133038684,-9551.96517079,0.000118,2]
[347821287,1736133038695,-1572.82199258,0.000118,2]
[347821288,1736133038706,-103153.0838849,0.000118,2]
[347821290,1736133040561,-500.0,0.00011798,2]
[347821292,1736133040570,-639.97584515,0.000118,2]
[347821294,1736133040582,-566.71100001,0.000118,2]
[347821295,1736133040783,-1677.90939394,0.000118,2]
[347821296,1736133040795,-5393.48146655,0.000118,2]
[347821297,1736133040806,-1739.1362216,0.000118,2]
[347821298,1736133040817,-1947.21295978,0.000118,2]
[347821299,1736133040827,-642.97607776,0.000118,2]
[347821300,1736133040983,-4740.1001,0.000118,2]
[347821301,1736133040994,-783.44824385,0.000118,2]
[347821317,1736133043446,-307.9424,0.00011695,2]
[347821336,1736133043618,-547.85,0.00011695,2]
[347821338,1736133043630,-1113.9476,0.00011695,2]
[347821339,1736133043639,-8197.09461422,0.000118,2]
[347821340,1736133043650,-476.67811274,0.000118,2]
[347821341,1736133043662,-859.9754515,0.000118,2]
[347821342,1736133043780,-799.0,0.000118,2]
[347821343,1736133043790,-28850.0,0.000118,2]
[347821344,1736133046300,-642.93,0.00011799,2]
[347821345,1736133046310,-1595.24558356,0.000118,2]
[347821346,1736133046473,-577.83384625,0.000118,2]
[347821347,1736133046652,-270.775,0.000118,2]
[347821348,1736133046822,-18349.04444881,0.000118,2]
[347821366,1736134102222,-400.0,8.889e-05,2]
[347821368,1736134113085,-27.62,8.889e-05,2]
[347821372,1736134190151,15429282.83040479,0.0002,120]
[347821373,1736134222273,-400.0,8.411e-05,2]
[347821386,1736134231795,-6.23,8.411e-05,2]
[347821387,1736134231806,-207.92573931,0.00010231,2]
[347821388,1736134231816,-235.17111586,0.00010275,2]
[347821389,1736134231828,-299.99,0.00010275,2]
[347821390,1736134231839,-464.83888414,0.00010275,2]
[347821391,1736134231848,-762.76900691,0.00010292,2]
[347821392,1736134231859,-1115.69099309,0.00010292,2]
[347821393,1736134231869,-250.0,0.00010331,2]
[347821394,1736134231878,-342.93,0.0001037,2]
[347821395,1736134231888,-351.27970602,0.00010435,2]
[347821396,1736134231899,-67.51029398,0.00010435,2]